[Event "Early-Titled-Tuesday-Blitz-July-09-2024"]
[Site "Chess.com"]
[Date "2024.07.09"]
[Round "1"]
[White "Austen48"]
[Black "Galileo22"]
[Result "0-1"]
[WhiteElo "2299"]
[BlackElo "2616"]
[TimeControl "180+1"]
[EndTime "8:07:43 PDT"]
[Termination "Galileo22 won by resignation"]

1. d4 {[%clk 0:02:59.7]} 1... Nf6 {[%clk 0:02:57.5]} 2. c4 {[%clk 0:02:59.1]}
2... e6 {[%clk 0:02:57.7]} 3. Nc3 {[%clk 0:02:58.8]} 3... Bb4 {[%clk 0:02:58.3]}
4. e3 {[%clk 0:02:52.9]} 4... O-O {[%clk 0:02:58.3]} 5. Ne2 {[%clk 0:02:49.6]}
5... d5 {[%clk 0:02:55.6]} 6. Nf4 {[%clk 0:02:39.4]} 6... b6 {[%clk 0:02:51.8]}
7. cxd5 {[%clk 0:02:32.5]} 7... exd5 {[%clk 0:02:50]} 8. Bd3 {[%clk 0:02:28.9]}
8... c5 {[%clk 0:02:42]} 9. O-O {[%clk 0:02:27.2]} 9... Nc6 {[%clk 0:02:39]} 10.
a3 {[%clk 0:02:24.4]} 10... Bxc3 {[%clk 0:02:33.3]} 11. bxc3 {[%clk 0:02:23.8]}
11... Re8 {[%clk 0:02:26.1]} 12. a4 {[%clk 0:02:17.1]} 12... c4 {[%clk
0:01:55.8]} 13. Bc2 {[%clk 0:02:14.1]} 13... Ne7 {[%clk 0:01:47.1]} 14. f3
{[%clk 0:02:08.2]} 14... Bf5 {[%clk 0:01:42.4]} 15. Bd2 {[%clk 0:01:55.4]} 15...
Bxc2 {[%clk 0:01:40.3]} 16. Qxc2 {[%clk 0:01:55.1]} 16... Ng6 {[%clk 0:01:41.2]}
17. Nxg6 {[%clk 0:01:44.4]} 17... hxg6 {[%clk 0:01:42.1]} 18. Rfe1 {[%clk
0:01:40.7]} 18... Qe7 {[%clk 0:01:34.5]} 19. Rab1 {[%clk 0:01:36.9]} 19... Qe6
{[%clk 0:01:27.3]} 20. a5 {[%clk 0:01:32.9]} 20... bxa5 {[%clk 0:01:24.8]} 21.
Ra1 {[%clk 0:01:30.3]} 21... Qf5 {[%clk 0:01:15.8]} 22. Qxf5 {[%clk 0:01:29]}
22... gxf5 {[%clk 0:01:16.7]} 23. Rxa5 {[%clk 0:01:28.4]} 23... a6 {[%clk
0:01:14.8]} 24. Rea1 {[%clk 0:01:27.3]} 24... Re6 {[%clk 0:01:15]} 25. Rb1
{[%clk 0:01:23.1]} 25... g6 {[%clk 0:01:12.5]} 26. Rb7 {[%clk 0:01:21.1]} 26...
Kf8 {[%clk 0:01:09.8]} 27. Kf2 {[%clk 0:01:21]} 27... Re7 {[%clk 0:01:08.1]} 28.
Rb6 {[%clk 0:01:19]} 28... Re6 {[%clk 0:01:07.8]} 29. Rb7 {[%clk 0:01:14.7]}
29... Ke8 {[%clk 0:01:06.7]} 30. Bc1 {[%clk 0:01:11]} 30... Kd8 {[%clk
0:01:06.5]} 31. Ba3 {[%clk 0:01:10.5]} 31... Ke8 {[%clk 0:01:04]} 32. Rc5 {[%clk
0:01:00.7]} 32... Rd8 {[%clk 0:00:41]} 33. Rcc7 {[%clk 0:00:58.2]} 33... Rd7
{[%clk 0:00:30.8]} 34. Rc8+ {[%clk 0:00:51.3]} 34... Rd8 {[%clk 0:00:29.8]} 35.
Rxd8+ {[%clk 0:00:49.3]} 35... Kxd8 {[%clk 0:00:30.7]} 36. Rxf7 {[%clk
0:00:48.6]} 36... Ne8 {[%clk 0:00:29.6]} 37. Ra7 {[%clk 0:00:46.1]} 37... Nc7
{[%clk 0:00:29.1]} 38. Bc5 {[%clk 0:00:42.6]} 38... Kc8 {[%clk 0:00:29.1]} 39.
h4 {[%clk 0:00:32]} 39... Kb8 {[%clk 0:00:28.1]} 40. g4 {[%clk 0:00:27.8]} 40...
fxg4 {[%clk 0:00:25.2]} 41. fxg4 {[%clk 0:00:27.5]} 41... Rc6 {[%clk 0:00:25.8]}
42. h5 {[%clk 0:00:25.4]} 42... gxh5 {[%clk 0:00:23.5]} 43. gxh5 {[%clk
0:00:21.9]} 43... Rh6 {[%clk 0:00:21.5]} 44. Kf3 {[%clk 0:00:19.2]} 44... Rxh5
{[%clk 0:00:21]} 45. Bb6 {[%clk 0:00:19.4]} 45... Nb5 {[%clk 0:00:19.4]} 46.
Rxa6 {[%clk 0:00:17]} 46... Kb7 {[%clk 0:00:19.2]} 47. Ra1 {[%clk 0:00:12.1]}
47... Kxb6 {[%clk 0:00:19.2]} 48. Rb1 {[%clk 0:00:12.7]} 48... Kc6 {[%clk
0:00:19.1]} 49. Kf4 {[%clk 0:00:12.9]} 49... Nxc3 {[%clk 0:00:18.8]} 50. Rc1
{[%clk 0:00:13.6]} 50... Ne4 {[%clk 0:00:18.6]} 51. Rxc4+ {[%clk 0:00:11.8]}
51... dxc4 {[%clk 0:00:18.5]} 52. Kxe4 {[%clk 0:00:12.6]} 52... Rh3 {[%clk
0:00:17.1]} 53. d5+ {[%clk 0:00:12]} 53... Kc5 {[%clk 0:00:17.7]} 54. d6 {[%clk
0:00:11.7]} 54... Kxd6 {[%clk 0:00:17.9]} 55. Kd4 {[%clk 0:00:11.5]} 55... c3
{[%clk 0:00:18.8]} 56. Kxc3 {[%clk 0:00:11.2]} 56... Rxe3+ {[%clk 0:00:19]} 0-1

[Event "Early-Titled-Tuesday-Blitz-July-09-2024"]
[Site "Chess.com"]
[Date "2024.07.09"]
[Round "1"]
[White "FormerProdigy"]
[Black "Hudijegszid"]
[Result "1-0"]
[WhiteElo "2985"]
[BlackElo "2519"]
[TimeControl "180+1"]
[EndTime "8:07:45 PDT"]
[Termination "FormerProdigy won on time"]

1. e4 {[%clk 0:03:00.9]} 1... c6 {[%clk 0:02:58]} 2. Nf3 {[%clk 0:02:59.8]} 2...
d5 {[%clk 0:02:56.9]} 3. d3 {[%clk 0:03:00.2]} 3... dxe4 {[%clk 0:02:56.3]} 4.
dxe4 {[%clk 0:03:01.1]} 4... Qxd1+ {[%clk 0:02:56.7]} 5. Kxd1 {[%clk 0:03:02]}
5... h5 {[%clk 0:02:57.1]} 6. a4 {[%clk 0:02:55.1]} 6... Nf6 {[%clk 0:02:52.1]}
7. Nbd2 {[%clk 0:02:53.4]} 7... g6 {[%clk 0:02:50]} 8. Bd3 {[%clk 0:02:42.3]}
8... Bh6 {[%clk 0:02:49.6]} 9. h3 {[%clk 0:02:32.7]} 9... Nbd7 {[%clk
0:02:47.2]} 10. Nb3 {[%clk 0:02:33.1]} 10... Bxc1 {[%clk 0:02:45.2]} 11. Kxc1
{[%clk 0:02:34]} 11... a5 {[%clk 0:02:43.4]} 12. e5 {[%clk 0:02:29.9]} 12... Nd5
{[%clk 0:02:36.5]} 13. e6 {[%clk 0:02:30.4]} 13... Nf8 {[%clk 0:02:32.2]} 14.
exf7+ {[%clk 0:02:29.5]} 14... Kxf7 {[%clk 0:02:33.1]} 15. g3 {[%clk 0:02:04.8]}
15... Bf5 {[%clk 0:02:31.1]} 16. Ng5+ {[%clk 0:02:03.5]} 16... Kf6 {[%clk
0:02:28.7]} 17. Ne4+ {[%clk 0:02:00.1]} 17... Bxe4 {[%clk 0:02:27.4]} 18. Bxe4
{[%clk 0:02:01]} 18... e5 {[%clk 0:02:24.9]} 19. Rd1 {[%clk 0:01:59.3]} 19... h4
{[%clk 0:02:07.7]} 20. gxh4 {[%clk 0:01:31.9]} 20... Rxh4 {[%clk 0:02:08.6]} 21.
Bxd5 {[%clk 0:01:32.4]} 21... cxd5 {[%clk 0:02:07.5]} 22. Rxd5 {[%clk
0:01:33.3]} 22... Rxh3 {[%clk 0:02:05.1]} 23. Kd2 {[%clk 0:01:33.8]} 23... Ne6
{[%clk 0:01:58.9]} 24. Nxa5 {[%clk 0:01:31.5]} 24... Rf3 {[%clk 0:01:26.7]} 25.
Rf1 {[%clk 0:01:17.1]} 25... b6 {[%clk 0:01:14.3]} 26. Nc4 {[%clk 0:01:17.4]}
26... Rxa4 {[%clk 0:01:03.3]} 27. Nxe5 {[%clk 0:01:17.2]} 27... Nc7 {[%clk
0:00:29.8]} 28. Nxf3 {[%clk 0:01:10.1]} 28... Nxd5 {[%clk 0:00:29.3]} 29. c3
{[%clk 0:01:07.6]} 29... Rf4 {[%clk 0:00:27.6]} 30. Nd4 {[%clk 0:01:08.1]} 30...
g5 {[%clk 0:00:27.4]} 31. Ke2 {[%clk 0:01:02.3]} 31... Re4+ {[%clk 0:00:25.3]}
32. Kf3 {[%clk 0:00:52.3]} 32... Rf4+ {[%clk 0:00:25.2]} 33. Kg3 {[%clk
0:00:51.4]} 33... Ne7 {[%clk 0:00:25.9]} 34. Rh1 {[%clk 0:00:37.3]} 34... Nf5+
{[%clk 0:00:25.8]} 35. Nxf5 {[%clk 0:00:37.2]} 35... Kxf5 {[%clk 0:00:21.9]} 36.
Rh6 {[%clk 0:00:38.1]} 36... Rg4+ {[%clk 0:00:22.3]} 37. Kf3 {[%clk 0:00:31.8]}
37... Rf4+ {[%clk 0:00:22.6]} 38. Kg2 {[%clk 0:00:30.1]} 38... Rg4+ {[%clk
0:00:12.5]} 39. Kf1 {[%clk 0:00:30.5]} 39... Rh4 {[%clk 0:00:07.8]} 40. Rxb6
{[%clk 0:00:30.5]} 40... Rh2 {[%clk 0:00:03.9]} 41. c4 {[%clk 0:00:27.1]} 41...
Ke4 {[%clk 0:00:04.1]} 42. Kg1 {[%clk 0:00:26]} 42... Rh3 {[%clk 0:00:02.9]} 43.
Kg2 {[%clk 0:00:25.8]} 43... Rd3 {[%clk 0:00:02.1]} 44. c5 {[%clk 0:00:22.9]}
44... Rd2 {[%clk 0:00:02.3]} 45. b4 {[%clk 0:00:22.9]} 45... Rc2 {[%clk
0:00:02.9]} 46. c6 {[%clk 0:00:20.5]} 46... Kd5 {[%clk 0:00:03.4]} 47. b5 {[%clk
0:00:20.6]} 47... Kd6 {[%clk 0:00:02.8]} 48. Rb7 {[%clk 0:00:21]} 48... Rc4
{[%clk 0:00:01.3]} 49. Kg3 {[%clk 0:00:20.2]} 49... Rc3+ {[%clk 0:00:01]} 50. f3
{[%clk 0:00:20.8]} 50... Rc4 {[%clk 0:00:01.1]} 51. c7 {[%clk 0:00:20.3]} 51...
Rxc7 {[%clk 0:00:01]} 52. Rxc7 {[%clk 0:00:21.2]} 1-0

[Event "Early-Titled-Tuesday-Blitz-July-09-2024"]
[Site "Chess.com"]
[Date "2024.07.09"]
[Round "1"]
[White "Arysya"]
[Black "kuchma777"]
[Result "1-0"]
[WhiteElo "2867"]
[BlackElo "2476"]
[TimeControl "180+1"]
[EndTime "8:07:56 PDT"]
[Termination "Arysya won by resignation"]

1. e4 {[%clk 0:02:59.8]} 1... c6 {[%clk 0:02:59.1]} 2. Nf3 {[%clk 0:02:52.6]}
2... d5 {[%clk 0:02:59.1]} 3. Nc3 {[%clk 0:02:53.5]} 3... dxe4 {[%clk
0:02:58.8]} 4. Nxe4 {[%clk 0:02:54.4]} 4... Nf6 {[%clk 0:02:59.2]} 5. Qe2 {[%clk
0:02:52.9]} 5... Na6 {[%clk 0:02:59.5]} 6. g3 {[%clk 0:02:43]} 6... Nb4 {[%clk
0:02:44.5]} 7. d3 {[%clk 0:02:42.5]} 7... Bg4 {[%clk 0:02:31.8]} 8. Bg2 {[%clk
0:02:40.7]} 8... e6 {[%clk 0:02:29.7]} 9. O-O {[%clk 0:02:37.6]} 9... Be7 {[%clk
0:02:26.9]} 10. a3 {[%clk 0:02:33.9]} 10... Nbd5 {[%clk 0:02:26.8]} 11. h3
{[%clk 0:02:25.5]} 11... Bh5 {[%clk 0:02:23.3]} 12. c4 {[%clk 0:02:21.6]} 12...
Nb6 {[%clk 0:02:12.9]} 13. b3 {[%clk 0:02:13.4]} 13... O-O {[%clk 0:02:09.2]}
14. Bb2 {[%clk 0:02:13.1]} 14... Bg6 {[%clk 0:02:05]} 15. Ne5 {[%clk 0:01:39.7]}
15... Nxe4 {[%clk 0:01:56.5]} 16. dxe4 {[%clk 0:01:40.6]} 16... Bf6 {[%clk
0:01:55.1]} 17. f4 {[%clk 0:01:36.1]} 17... Qc7 {[%clk 0:01:48.8]} 18. Rad1
{[%clk 0:01:26.3]} 18... Rfe8 {[%clk 0:01:43.1]} 19. c5 {[%clk 0:01:21.2]} 19...
Nc8 {[%clk 0:01:33.6]} 20. Rd7 {[%clk 0:01:18.9]} 20... Qb8 {[%clk 0:01:33.1]}
21. Rfd1 {[%clk 0:01:11.3]} 21... Ne7 {[%clk 0:01:30.4]} 22. Nxg6 {[%clk
0:01:06.3]} 22... Nxg6 {[%clk 0:01:23.8]} 23. Bxf6 {[%clk 0:01:00.6]} 23... gxf6
{[%clk 0:01:24.7]} 24. h4 {[%clk 0:01:01.3]} 24... Re7 {[%clk 0:01:10.6]} 25. h5
{[%clk 0:00:59.1]} 25... Rxd7 {[%clk 0:01:03.9]} 26. Rxd7 {[%clk 0:01:00]} 26...
Qc8 {[%clk 0:01:03.1]} 27. Qd1 {[%clk 0:01:00.4]} 27... Qf8 {[%clk 0:00:48.6]}
28. b4 {[%clk 0:00:45.3]} 28... Ne7 {[%clk 0:00:39.6]} 29. Qd6 {[%clk
0:00:36.3]} 29... Nc8 {[%clk 0:00:32.3]} 30. Qxf8+ {[%clk 0:00:35.5]} 30... Kxf8
{[%clk 0:00:32.5]} 31. Rxb7 {[%clk 0:00:36.4]} 31... Ne7 {[%clk 0:00:26.8]} 32.
a4 {[%clk 0:00:33.8]} 32... a6 {[%clk 0:00:23.6]} 33. Bf1 {[%clk 0:00:32.6]}
33... Ke8 {[%clk 0:00:20.5]} 34. Rb6 {[%clk 0:00:31.1]} 34... a5 {[%clk
0:00:20.8]} 35. b5 {[%clk 0:00:31.4]} 35... cxb5 {[%clk 0:00:21.2]} 36. Bxb5+
{[%clk 0:00:30.9]} 36... Kf8 {[%clk 0:00:21.1]} 37. Bd7 {[%clk 0:00:26.8]} 37...
Ra7 {[%clk 0:00:15.7]} 38. c6 {[%clk 0:00:25.7]} 38... Rc7 {[%clk 0:00:06]} 39.
Rb7 {[%clk 0:00:23.1]} 39... Rxc6 {[%clk 0:00:04.5]} 40. Bxc6 {[%clk 0:00:21]}
40... Nxc6 {[%clk 0:00:05.4]} 41. Rb5 {[%clk 0:00:21.4]} 41... Kg7 {[%clk
0:00:03.6]} 42. Rc5 {[%clk 0:00:21.6]} 42... Nd4 {[%clk 0:00:01.6]} 43. Rxa5
{[%clk 0:00:21.9]} 43... Ne2+ {[%clk 0:00:01.7]} 44. Kf2 {[%clk 0:00:22]} 44...
Nc3 {[%clk 0:00:02.6]} 45. Kf3 {[%clk 0:00:21.6]} 45... Nb1 {[%clk 0:00:01.6]}
46. Ra7 {[%clk 0:00:19.8]} 46... Nd2+ {[%clk 0:00:01.9]} 47. Ke3 {[%clk
0:00:20.3]} 47... Nf1+ {[%clk 0:00:02.4]} 48. Kf2 {[%clk 0:00:19.2]} 48... Nd2
{[%clk 0:00:03]} 49. e5 {[%clk 0:00:19.2]} 49... fxe5 {[%clk 0:00:03]} 50. fxe5
{[%clk 0:00:20.1]} 50... Nc4 {[%clk 0:00:03]} 51. a5 {[%clk 0:00:19.5]} 51...
Nxe5 {[%clk 0:00:03.3]} 52. a6 {[%clk 0:00:20.1]} 52... Nc4 {[%clk 0:00:02.2]}
53. Rc7 {[%clk 0:00:18.7]} 53... Nd6 {[%clk 0:00:01.9]} 54. a7 {[%clk
0:00:18.7]} 54... Nb5 {[%clk 0:00:02.4]} 55. Rb7 {[%clk 0:00:18.8]} 55... Nd6
{[%clk 0:00:02.6]} 56. a8=Q {[%clk 0:00:18.8]} 1-0

[Event "Early-Titled-Tuesday-Blitz-July-09-2024"]
[Site "Chess.com"]
[Date "2024.07.09"]
[Round "1"]
[White "Bykov_Egor"]
[Black "suspiciumchess"]
[Result "1-0"]
[WhiteElo "2678"]
[BlackElo "2354"]
[TimeControl "180+1"]
[EndTime "8:07:56 PDT"]
[Termination "Bykov_Egor won on time"]

1. Nf3 {[%clk 0:03:00.9]} 1... Nf6 {[%clk 0:02:58.6]} 2. g3 {[%clk 0:02:59.9]}
2... g6 {[%clk 0:02:57.1]} 3. Bg2 {[%clk 0:03:00.2]} 3... Bg7 {[%clk 0:02:58]}
4. O-O {[%clk 0:03:00.6]} 4... O-O {[%clk 0:02:57.3]} 5. d4 {[%clk 0:03:01.1]}
5... d5 {[%clk 0:02:57.1]} 6. c4 {[%clk 0:03:00.8]} 6... c6 {[%clk 0:02:57.2]}
7. Qb3 {[%clk 0:03:00.9]} 7... Qb6 {[%clk 0:02:47.8]} 8. c5 {[%clk 0:03:00.6]}
8... Qxb3 {[%clk 0:02:45.4]} 9. axb3 {[%clk 0:03:01.5]} 9... Bf5 {[%clk
0:02:29.3]} 10. h3 {[%clk 0:02:53.1]} 10... h5 {[%clk 0:02:28.6]} 11. Nc3 {[%clk
0:02:51.8]} 11... Na6 {[%clk 0:02:21.5]} 12. Bf4 {[%clk 0:02:51.4]} 12... Rfc8
{[%clk 0:02:11.5]} 13. Ra4 {[%clk 0:02:44.2]} 13... Nc7 {[%clk 0:02:11.2]} 14.
b4 {[%clk 0:02:41]} 14... a6 {[%clk 0:02:08.4]} 15. Bxc7 {[%clk 0:02:35.5]}
15... Rxc7 {[%clk 0:02:08.5]} 16. b5 {[%clk 0:02:35.9]} 16... cxb5 {[%clk
0:02:00.4]} 17. Nxb5 {[%clk 0:02:36]} 17... Rcc8 {[%clk 0:02:01]} 18. Nc3 {[%clk
0:02:36.1]} 18... Bc2 {[%clk 0:01:36.9]} 19. Rb4 {[%clk 0:02:34.2]} 19... Rab8
{[%clk 0:01:31.9]} 20. Rc1 {[%clk 0:02:26.3]} 20... Be4 {[%clk 0:01:31.2]} 21.
Ra1 {[%clk 0:01:51.5]} 21... Nd7 {[%clk 0:01:08.9]} 22. Nxe4 {[%clk 0:01:37.1]}
22... dxe4 {[%clk 0:01:07.9]} 23. Nd2 {[%clk 0:01:31.7]} 23... e5 {[%clk
0:00:37.9]} 24. e3 {[%clk 0:01:22.7]} 24... exd4 {[%clk 0:00:35.8]} 25. exd4
{[%clk 0:01:23.6]} 25... f5 {[%clk 0:00:36.4]} 26. Bf1 {[%clk 0:00:51.7]} 26...
Kh7 {[%clk 0:00:34.1]} 27. Ra3 {[%clk 0:00:44.2]} 27... Rd8 {[%clk 0:00:18.5]}
28. Nb3 {[%clk 0:00:39.9]} 28... Nf8 {[%clk 0:00:18.5]} 29. Bc4 {[%clk
0:00:31.5]} 29... Kh6 {[%clk 0:00:16.2]} 30. Bf7 {[%clk 0:00:19.9]} 30... Rd7
{[%clk 0:00:14]} 31. Bg8 {[%clk 0:00:20.1]} 31... Bf6 {[%clk 0:00:07.8]} 32. c6
{[%clk 0:00:18.5]} 32... Rc7 {[%clk 0:00:05.8]} 33. Rxb7 {[%clk 0:00:18.3]}
33... Rcxb7 {[%clk 0:00:05.3]} 34. cxb7 {[%clk 0:00:19.2]} 34... Rxb7 {[%clk
0:00:06.2]} 35. Rxa6 {[%clk 0:00:19.9]} 35... Kg7 {[%clk 0:00:05.2]} 36. Bc4
{[%clk 0:00:20.5]} 36... Rd7 {[%clk 0:00:02.7]} 37. Kf1 {[%clk 0:00:14.5]} 37...
Rc7 {[%clk 0:00:02.3]} 38. Bd5 {[%clk 0:00:11]} 38... Nh7 {[%clk 0:00:02.2]} 39.
Rb6 {[%clk 0:00:10.5]} 39... Ng5 {[%clk 0:00:02.4]} 40. g4 {[%clk 0:00:09.8]}
40... hxg4 {[%clk 0:00:01.8]} 41. hxg4 {[%clk 0:00:10.7]} 41... fxg4 {[%clk
0:00:02.2]} 42. Rb7 {[%clk 0:00:10.8]} 42... Rxb7 {[%clk 0:00:02.2]} 43. Bxb7
{[%clk 0:00:11.7]} 43... Kf7 {[%clk 0:00:02.2]} 44. Ke2 {[%clk 0:00:11.4]} 44...
Ke6 {[%clk 0:00:02.3]} 45. Ke3 {[%clk 0:00:12.1]} 45... Kd6 {[%clk 0:00:01.9]}
46. Bxe4 {[%clk 0:00:12.1]} 46... Ne6 {[%clk 0:00:02.1]} 47. Bxg6 {[%clk
0:00:11.9]} 47... Bg5+ {[%clk 0:00:02.2]} 48. Ke4 {[%clk 0:00:11.7]} 48... Nf4
{[%clk 0:00:02.1]} 49. Bf5 {[%clk 0:00:11.7]} 1-0

[Event "Early-Titled-Tuesday-Blitz-July-09-2024"]
[Site "Chess.com"]
[Date "2024.07.09"]
[Round "1"]
[White "Sic_Transit_GM"]
[Black "yonaltimur"]
[Result "1-0"]
[WhiteElo "2591"]
[BlackElo "2236"]
[TimeControl "180+1"]
[EndTime "8:07:57 PDT"]
[Termination "Sic_Transit_GM won by resignation"]

1. Nf3 {[%clk 0:02:57.6]} 1... d5 {[%clk 0:02:59.7]} 2. e3 {[%clk 0:02:57.7]}
2... Nf6 {[%clk 0:02:56.7]} 3. c4 {[%clk 0:02:58.2]} 3... e6 {[%clk 0:02:56.9]}
4. Nc3 {[%clk 0:02:58.7]} 4... Be7 {[%clk 0:02:57.2]} 5. b3 {[%clk 0:02:59.2]}
5... O-O {[%clk 0:02:57.4]} 6. Bb2 {[%clk 0:02:59.6]} 6... c5 {[%clk 0:02:57.7]}
7. cxd5 {[%clk 0:02:57.4]} 7... exd5 {[%clk 0:02:57.4]} 8. d4 {[%clk 0:02:57.2]}
8... Nc6 {[%clk 0:02:56.4]} 9. Be2 {[%clk 0:02:54.5]} 9... Be6 {[%clk
0:02:50.6]} 10. O-O {[%clk 0:02:53.5]} 10... Rc8 {[%clk 0:02:47.6]} 11. dxc5
{[%clk 0:02:49.3]} 11... Bxc5 {[%clk 0:02:48.5]} 12. Rc1 {[%clk 0:02:48.9]}
12... Qe7 {[%clk 0:02:44.9]} 13. Nb5 {[%clk 0:02:46.6]} 13... Ne4 {[%clk
0:02:38.1]} 14. Nbd4 {[%clk 0:02:30.3]} 14... Rfd8 {[%clk 0:02:17.6]} 15. h3
{[%clk 0:02:07.8]} 15... a6 {[%clk 0:01:31.2]} 16. Bd3 {[%clk 0:02:03.1]} 16...
Rc7 {[%clk 0:01:16]} 17. Bb1 {[%clk 0:01:59]} 17... Rdc8 {[%clk 0:01:14.2]} 18.
Nxe6 {[%clk 0:01:34.5]} 18... fxe6 {[%clk 0:01:13.3]} 19. Bxe4 {[%clk
0:01:26.2]} 19... dxe4 {[%clk 0:01:14.2]} 20. Nd2 {[%clk 0:01:22.7]} 20... Rd8
{[%clk 0:01:11]} 21. Qe2 {[%clk 0:01:14.4]} 21... Nb4 {[%clk 0:00:55.9]} 22.
Nxe4 {[%clk 0:01:10.5]} 22... Nd3 {[%clk 0:00:56]} 23. Rcd1 {[%clk 0:00:45.7]}
23... Nxb2 {[%clk 0:00:47.2]} 24. Qxb2 {[%clk 0:00:46.6]} 24... Rcd7 {[%clk
0:00:44.5]} 25. Rxd7 {[%clk 0:00:40.1]} 25... Rxd7 {[%clk 0:00:44.2]} 26. Rc1
{[%clk 0:00:30.4]} 26... Ba3 {[%clk 0:00:39.7]} 27. Rc8+ {[%clk 0:00:29.8]}
27... Kf7 {[%clk 0:00:40.1]} 28. Qe5 {[%clk 0:00:24]} 28... h6 {[%clk
0:00:37.6]} 29. g3 {[%clk 0:00:17.8]} 29... Rd8 {[%clk 0:00:30.7]} 30. Rxd8
{[%clk 0:00:16.2]} 30... Qxd8 {[%clk 0:00:31.6]} 31. Kg2 {[%clk 0:00:16]} 31...
Qd7 {[%clk 0:00:29.7]} 32. Qf4+ {[%clk 0:00:11.5]} 32... Kg6 {[%clk 0:00:29.2]}
33. Qg4+ {[%clk 0:00:11.9]} 33... Kf7 {[%clk 0:00:28.1]} 34. Qh5+ {[%clk
0:00:11.7]} 34... Kg8 {[%clk 0:00:27]} 35. Qg4 {[%clk 0:00:11.4]} 35... Qd5
{[%clk 0:00:24.2]} 36. Kh2 {[%clk 0:00:10.8]} 36... Kh7 {[%clk 0:00:24]} 37. Qf4
{[%clk 0:00:10]} 37... Bb2 {[%clk 0:00:20.5]} 38. h4 {[%clk 0:00:09.1]} 38... a5
{[%clk 0:00:20.4]} 39. Qg4 {[%clk 0:00:06]} 39... b5 {[%clk 0:00:19.6]} 40. h5
{[%clk 0:00:06]} 40... a4 {[%clk 0:00:19.7]} 41. Qg6+ {[%clk 0:00:05.8]} 41...
Kh8 {[%clk 0:00:19.2]} 42. Qe8+ {[%clk 0:00:05.7]} 42... Kh7 {[%clk 0:00:19.3]}
43. Qg6+ {[%clk 0:00:06.4]} 43... Kh8 {[%clk 0:00:19.1]} 44. g4 {[%clk
0:00:06.9]} 44... axb3 {[%clk 0:00:18.9]} 45. axb3 {[%clk 0:00:07.6]} 45... Be5+
{[%clk 0:00:15.4]} 46. Kg2 {[%clk 0:00:06.7]} 46... Qxb3 {[%clk 0:00:11.5]} 47.
g5 {[%clk 0:00:06.9]} 47... hxg5 {[%clk 0:00:08.4]} 48. Nxg5 {[%clk 0:00:07.3]}
48... Qd5+ {[%clk 0:00:02.1]} 49. e4 {[%clk 0:00:07.7]} 1-0

[Event "Early-Titled-Tuesday-Blitz-July-09-2024"]
[Site "Chess.com"]
[Date "2024.07.09"]
[Round "1"]
[White "FollowRivers"]
[Black "Shield12"]
[Result "0-1"]
[WhiteElo "2521"]
[BlackElo "2987"]
[TimeControl "180+1"]
[EndTime "8:08:04 PDT"]
[Termination "Shield12 won by checkmate"]

1. Nf3 {[%clk 0:03:00.9]} 1... c5 {[%clk 0:00:36.1]} 2. e3 {[%clk 0:02:56.2]}
2... g6 {[%clk 0:00:36]} 3. d4 {[%clk 0:02:55.1]} 3... Bg7 {[%clk 0:00:36.9]} 4.
Be2 {[%clk 0:02:53.8]} 4... Nf6 {[%clk 0:00:36.3]} 5. O-O {[%clk 0:02:52.8]}
5... cxd4 {[%clk 0:00:34.5]} 6. Nxd4 {[%clk 0:02:51.6]} 6... O-O {[%clk
0:00:35.4]} 7. b3 {[%clk 0:02:51.8]} 7... b6 {[%clk 0:00:33.4]} 8. Bf3 {[%clk
0:02:46.8]} 8... d5 {[%clk 0:00:32.9]} 9. Bb2 {[%clk 0:02:47.2]} 9... Bb7 {[%clk
0:00:32.6]} 10. c4 {[%clk 0:02:46.7]} 10... e6 {[%clk 0:00:29.1]} 11. Nc3 {[%clk
0:02:44.6]} 11... e5 {[%clk 0:00:26.1]} 12. Ndb5 {[%clk 0:02:32.1]} 12... a6
{[%clk 0:00:25.6]} 13. Na3 {[%clk 0:02:29.7]} 13... e4 {[%clk 0:00:24.7]} 14.
Be2 {[%clk 0:02:29.7]} 14... dxc4 {[%clk 0:00:23.8]} 15. Nxc4 {[%clk 0:02:28]}
15... b5 {[%clk 0:00:22.6]} 16. Nd6 {[%clk 0:01:48.2]} 16... Bc6 {[%clk
0:00:22.5]} 17. a4 {[%clk 0:01:47.7]} 17... Nd5 {[%clk 0:00:21.6]} 18. Ndxe4
{[%clk 0:01:34.3]} 18... b4 {[%clk 0:00:21.3]} 19. Nxd5 {[%clk 0:01:31.6]} 19...
Bxb2 {[%clk 0:00:21.9]} 20. Rb1 {[%clk 0:01:11.1]} 20... Bxd5 {[%clk 0:00:22]}
21. Bf3 {[%clk 0:01:07.3]} 21... Bg7 {[%clk 0:00:22.2]} 22. Nc5 {[%clk
0:00:51.1]} 22... Bxf3 {[%clk 0:00:21.3]} 23. Qxf3 {[%clk 0:00:52]} 23... Ra7
{[%clk 0:00:21.8]} 24. Rfd1 {[%clk 0:00:52.5]} 24... Qb6 {[%clk 0:00:21.4]} 25.
Rbc1 {[%clk 0:00:51.1]} 25... Rc7 {[%clk 0:00:20.3]} 26. Ne4 {[%clk 0:00:48]}
26... Rfc8 {[%clk 0:00:19.4]} 27. Rxc7 {[%clk 0:00:46.1]} 27... Qxc7 {[%clk
0:00:20.3]} 28. h4 {[%clk 0:00:40.5]} 28... h6 {[%clk 0:00:19.4]} 29. h5 {[%clk
0:00:40.2]} 29... g5 {[%clk 0:00:19.8]} 30. Ng3 {[%clk 0:00:40.6]} 30... Rd8
{[%clk 0:00:19.3]} 31. Nf5 {[%clk 0:00:32.1]} 31... Rxd1+ {[%clk 0:00:19]} 32.
Qxd1 {[%clk 0:00:33]} 32... Nd7 {[%clk 0:00:19.4]} 33. Qd5 {[%clk 0:00:27.9]}
33... Bf8 {[%clk 0:00:18.9]} 34. Nd4 {[%clk 0:00:22.9]} 34... Nf6 {[%clk
0:00:18.4]} 35. Qa8 {[%clk 0:00:21.4]} 35... a5 {[%clk 0:00:16.9]} 36. Nf5
{[%clk 0:00:18.7]} 36... Qc5 {[%clk 0:00:11.8]} 37. Nxh6+ {[%clk 0:00:15.3]}
37... Kg7 {[%clk 0:00:12.2]} 38. Qf3 {[%clk 0:00:10.8]} 38... Qc1+ {[%clk
0:00:10.7]} 39. Kh2 {[%clk 0:00:10.5]} 39... Qc7+ {[%clk 0:00:10.7]} 40. g3
{[%clk 0:00:09.2]} 40... Kxh6 {[%clk 0:00:08.3]} 41. Qxf6+ {[%clk 0:00:09.4]}
41... Kh7 {[%clk 0:00:08.7]} 42. Qf5+ {[%clk 0:00:08.7]} 42... Kh8 {[%clk
0:00:06.9]} 43. Qxg5 {[%clk 0:00:07.1]} 43... Qd6 {[%clk 0:00:07.3]} 44. Qxa5
{[%clk 0:00:06.7]} 44... Qf6 {[%clk 0:00:06.8]} 45. Kg2 {[%clk 0:00:06.4]} 45...
Qe6 {[%clk 0:00:05.8]} 46. Qd8 {[%clk 0:00:05.1]} 46... Kg8 {[%clk 0:00:05.4]}
47. Qd3 {[%clk 0:00:05.5]} 47... Qc6+ {[%clk 0:00:04.6]} 48. e4 {[%clk
0:00:05.1]} 48... Qc3 {[%clk 0:00:04.5]} 49. Qf3 {[%clk 0:00:04.5]} 49... Bc5
{[%clk 0:00:03.6]} 50. h6 {[%clk 0:00:03.6]} 50... Qd4 {[%clk 0:00:02.7]} 51.
Qg4+ {[%clk 0:00:03.7]} 51... Kh7 {[%clk 0:00:02.9]} 52. f3 {[%clk 0:00:04.4]}
52... Qg1+ {[%clk 0:00:02.6]} 53. Kh3 {[%clk 0:00:05.1]} 53... Qh1# {[%clk
0:00:03.3]} 0-1